bitfinex/quotes_BTCUSD_20250705
["timestamp","ask_amount","ask_price","bid_price","bid_amount"]
[1751689859887,0.53356621,108490.0,108480.0,0.28413483]
[1751689860851,0.61578571,108490.0,108480.0,0.09976905]
[1751689861059,1.02038155,108490.0,108480.0,0.09976905]
[1751689861313,1.04250952,108490.0,108480.0,0.09976905]
[1751689864356,1.07022052,108490.0,108480.0,0.09976905]
[1751689865860,1.04250952,108490.0,108480.0,0.09976905]
[1751689866761,1.04250952,108490.0,108480.0,0.00833212]
[1751689866963,1.13394645,108490.0,108480.0,0.00833212]
[1751689867286,1.04250952,108490.0,108480.0,0.00833212]
[1751689867695,1.07007889,108490.0,108480.0,0.00833212]
[1751689868080,1.00214082,108490.0,108480.0,0.00833212]
[1751689868371,0.97457145,108490.0,108480.0,0.00833212]
[1751689868710,0.97757145,108490.0,108480.0,0.00233212]
[1751689869118,0.97757145,108490.0,108480.0,0.00433212]
[1751689869759,1.16541145,108490.0,108480.0,0.00433212]
[1751689870186,1.16541145,108490.0,108480.0,0.00233212]
[1751689870384,1.16541145,108490.0,108480.0,0.00433212]
[1751689870535,1.24197434,108490.0,108480.0,0.00433212]
[1751689870736,1.16241145,108490.0,108480.0,0.00433212]
[1751689870939,1.16541145,108490.0,108480.0,0.00433212]
[1751689873884,1.19312645,108490.0,108480.0,0.00433212]
[1751689875960,1.19311008,108490.0,108480.0,0.00433212]
[1751689876428,1.41311008,108490.0,108480.0,0.00433212]
[1751689877471,1.41295008,108490.0,108480.0,0.00433212]
[1751689879052,1.50438701,108490.0,108480.0,0.00433212]
[1751689879681,1.41295008,108490.0,108480.0,0.00433212]
[1751689880217,1.22527008,108490.0,108480.0,0.00433212]
[1751689880418,1.01667538,108490.0,108480.0,0.00433212]
[1751689880642,1.20937008,108490.0,108480.0,0.00433212]
[1751689880842,1.19337008,108490.0,108480.0,0.00433212]
[1751689881657,1.26859246,108490.0,108480.0,0.00433212]
[1751689882571,1.45623246,108490.0,108480.0,0.00433212]
[1751689889372,1.48387197,108490.0,108480.0,0.00433212]
[1751689890146,1.43964959,108490.0,108480.0,0.00433212]
[1751689890942,1.40848959,108490.0,108480.0,0.00433212]
[1751689891104,1.38085008,108490.0,108480.0,0.00433212]
[1751689891516,1.42408959,108490.0,108480.0,0.00433212]
[1751689892475,1.43928959,108490.0,108480.0,0.00433212]
[1751689892972,1.25180959,108490.0,108480.0,0.00433212]
[1751689893176,1.22100959,108490.0,108480.0,0.00433212]
[1751689893530,1.22100959,108490.0,108480.0,0.01953212]
[1751689894153,1.19337008,108490.0,108480.0,0.01953212]
[1751689894602,0.79717538,108490.0,108480.0,0.01953212]
[1751689894803,0.80632875,108490.0,108480.0,0.32095311]
[1751689895387,0.797112,108490.0,108480.0,0.32095311]
[1751689895584,1.1933067,108490.0,108480.0,0.32095311]
[1751689895951,1.18408969,108490.0,108480.0,0.31173483]
[1751689896334,1.17487251,108490.0,108480.0,0.31173483]
[1751689897762,0.83487251,108490.0,108480.0,0.31173483]
[1751689897918,1.17487251,108490.0,108480.0,0.31173483]
[1751689900969,0.2451116,108490.0,108480.0,1.07890336]
[1751689901199,0.003,108490.0,108480.0,1.07890336]
[1751689902414,0.003,108490.0,108480.0,1.07690336]
[1751689902629,0.36764815,108500.0,108490.0,0.23338322]
[1751689902862,0.37686448,108500.0,108490.0,0.52135716]
[1751689903267,0.37686448,108500.0,108490.0,0.53057408]
[1751689903473,0.37686456,108500.0,108490.0,0.50292306]
[1751689903650,0.94817523,108500.0,108490.0,0.53962571]
[1751689903895,0.95117523,108500.0,108490.0,0.53962571]
[1751689904072,0.55498053,108500.0,108490.0,0.53962571]
[1751689904272,0.54576445,108500.0,108490.0,0.30838571]
[1751689904478,1.02417983,108500.0,108490.0,0.28079693]
[1751689904713,1.07788011,108500.0,108490.0,0.28079693]
[1751689904917,1.07788011,108500.0,108490.0,0.09343693]
[1751689905494,0.9643429,108500.0,108490.0,0.09343693]
[1751689905845,0.98644088,108500.0,108490.0,0.09343693]
[1751689906203,0.59024618,108500.0,108490.0,0.09343693]
[1751689906425,0.98644088,108500.0,108490.0,0.09343693]
[1751689907222,0.98644088,108500.0,108490.0,0.09111693]
[1751689907415,1.07787781,108500.0,108490.0,0.09111693]
[1751689908036,0.97134088,108500.0,108490.0,0.09111693]
[1751689908847,0.57514618,108500.0,108490.0,0.09111693]
[1751689909030,0.97134088,108500.0,108490.0,0.09111693]
[1751689910692,0.98724088,108500.0,108490.0,0.09111693]
[1751689912309,1.20724088,108500.0,108490.0,0.09111693]
[1751689912519,1.29867781,108500.0,108490.0,0.09111693]
[1751689914554,1.29867781,108500.0,108490.0,0.002]
[1751689918526,1.20724088,108500.0,108490.0,0.002]
[1751689925005,0.81104618,108500.0,108490.0,0.002]
[1751689925202,1.20724088,108500.0,108490.0,0.002]
[1751689926820,1.23488039,108500.0,108490.0,0.002]
[1751689926958,1.27146001,108500.0,108490.0,0.002]
[1751689927158,1.36289694,108500.0,108490.0,0.002]
[1751689927373,1.37919694,108500.0,108490.0,0.002]
[1751689928024,1.56627694,108500.0,108490.0,0.002]
[1751689929109,0.02765612,108470.0,108460.0,0.90819156]
[1751689929309,0.02765612,108470.0,108460.0,0.99962849]
[1751689929526,0.02765612,108470.0,108460.0,1.00884822]
[1751689929858,0.03687525,108470.0,108460.0,1.01806786]
[1751689929989,0.03687525,108470.0,108460.0,1.00884822]
[1751689930408,0.02765612,108470.0,108460.0,1.00884822]
[1751689930780,0.01843716,108470.0,108460.0,1.0180671]
[1751689930984,0.01843716,108470.0,108460.0,1.00884771]
[1751689931188,0.02765604,108470.0,108460.0,1.02506727]
[1751689931361,0.02765604,108470.0,108460.0,1.02606727]
[1751689931609,0.02765604,108470.0,108460.0,1.02606735]
[1751689931809,0.02765604,108470.0,108460.0,0.46820851]
[1751689932088,0.036875,108470.0,108460.0,0.62777881]
[1751689932383,0.09862006,108470.0,108460.0,0.63699854]
[1751689932658,0.02765604,108470.0,108460.0,0.64621801]
[1751689932932,0.02765604,108470.0,108460.0,0.45921801]
[1751689933068,0.02765604,108470.0,108460.0,0.63699854]
[1751689933274,0.21203941,108470.0,108460.0,0.3765791]
[1751689933523,0.29351257,108470.0,108460.0,0.6093391]
[1751689933729,0.29351257,108470.0,108460.0,0.61855891]
[1751689933928,0.02765664,108470.0,108460.0,0.62777864]
[1751689934105,0.02765664,108470.0,108460.0,0.63699828]
[1751689934274,0.02765664,108470.0,108460.0,0.62777864]
[1751689935013,0.02765664,108470.0,108460.0,0.63699828]
[1751689935409,0.01843716,108470.0,108460.0,0.64621775]
[1751689935980,0.02765604,108470.0,108460.0,0.64621775]
[1751689936340,0.02765604,108470.0,108460.0,0.63699828]
[1751689936545,0.02765604,108470.0,108460.0,0.64621784]
[1751689936947,0.02765604,108470.0,108460.0,0.65543731]
[1751689937153,0.02765604,108470.0,108460.0,0.65543689]
[1751689937353,0.02765604,108470.0,108460.0,0.6462175]
[1751689937556,0.20281735,108480.0,108460.0,0.94441682]
[1751689937738,0.54281735,108480.0,108470.0,0.3082197]
[1751689939201,0.57414872,108480.0,108470.0,0.32665788]
[1751689939408,0.57414872,108480.0,108470.0,0.31743883]
[1751689939585,0.57414872,108480.0,108470.0,0.3082197]
[1751689939753,0.57414872,108480.0,108470.0,0.2919197]
[1751689940197,0.57414872,108480.0,108470.0,0.30113883]
[1751689940404,0.57414872,108480.0,108470.0,0.31035788]
[1751689940607,0.57414872,108480.0,108470.0,0.30613883]
[1751689941414,0.57414872,108480.0,108470.0,0.2969197]
[1751689941840,0.57414872,108480.0,108470.0,0.30613883]
[1751689942039,0.57414872,108480.0,108470.0,0.2969197]
[1751689942325,1.06916241,108480.0,108470.0,0.28327693]
[1751689943344,1.06916241,108480.0,108470.0,0.4676597]
[1751689943547,1.05256241,108480.0,108470.0,0.4676597]
[1751689945931,1.04334421,108480.0,108470.0,0.28327693]
[1751689952399,0.64714951,108480.0,108470.0,0.28327693]
[1751689952609,0.95190728,108480.0,108470.0,0.28327693]
[1751689953229,0.55571258,108480.0,108470.0,0.28327693]
[1751689956078,0.95190728,108480.0,108470.0,0.28327693]
[1751689957021,0.55571258,108480.0,108470.0,0.28327693]
[1751689957231,0.55571258,108480.0,108470.0,0.09643693]
[1751689957907,0.83422032,108480.0,108470.0,0.09643693]
[1751689963963,0.55571258,108480.0,108470.0,0.2808197]
[1751689964171,0.83422032,108480.0,108470.0,0.2808197]
[1751689966283,0.86185983,108480.0,108470.0,0.2808197]
[1751689967131,0.85685983,108480.0,108470.0,0.2808197]
[1751689967343,0.82922032,108480.0,108470.0,0.2808197]
[1751689973309,0.82922032,108480.0,108470.0,0.2772997]
[1751689977119,0.55071258,108480.0,108470.0,0.2772997]
[1751689977322,0.85685983,108480.0,108470.0,0.2772997]
[1751689977994,0.58757012,108480.0,108470.0,0.2772997]
[1751689978204,0.86607786,108480.0,108470.0,0.28651883]
[1751689978414,0.58757012,108480.0,108470.0,0.28651883]
[1751689979700,0.58757012,108480.0,108470.0,0.2772997]
[1751689980782,0.86607786,108480.0,108470.0,0.2772997]
[1751689982361,0.85685983,108480.0,108470.0,0.2772997]
[1751689985873,0.84764155,108480.0,108470.0,0.09291693]
[1751689986422,0.86394155,108480.0,108470.0,0.09291693]
[1751689987015,0.97157848,108480.0,108470.0,0.09291693]
[1751689988723,0.88014155,108480.0,108470.0,0.09291693]
[1751689989037,0.86394155,108480.0,108470.0,0.09291693]
[1751689990358,0.84764155,108480.0,108470.0,0.2772997]
[1751689990943,0.84764155,108480.0,108470.0,0.4638197]
[1751689991158,0.84764155,108480.0,108470.0,0.27943693]
[1751689993543,0.59255486,108480.0,108470.0,0.4638197]
[1751689993742,0.56491535,108480.0,108470.0,0.4789197]
[1751689995231,0.56491535,108480.0,108470.0,0.48813883]
[1751689995439,0.56491535,108480.0,108470.0,0.48813875]
[1751689995855,0.56491535,108480.0,108470.0,0.48813883]
[1751689996065,0.56491535,108480.0,108470.0,0.4789197]
[1751689996263,0.56491535,108480.0,108470.0,0.47303883]
[1751689996499,0.56491535,108480.0,108470.0,0.4638197]
[1751689996909,0.56491535,108480.0,108470.0,0.47303883]
[1751689997147,0.56491535,108480.0,108470.0,0.74232744]
[1751689997578,0.56491535,108480.0,108470.0,0.75154657]
[1751689997785,0.56491535,108480.0,108470.0,0.74232744]
[1751690002116,0.56491535,108480.0,108470.0,0.4638197]
[1751690003128,0.55569732,108480.0,108470.0,0.4638197]
[1751690005570,0.87820073,108480.0,108470.0,0.27943693]
[1751690005770,0.89320073,108480.0,108470.0,0.27943693]
[1751690007185,0.90960073,108480.0,108470.0,0.27943693]
[1751690008704,1.18810847,108480.0,108470.0,0.005]
[1751690008896,1.21574798,108480.0,108470.0,0.19152]
[1751690009293,1.21574798,108480.0,108470.0,0.005]
[1751690009497,1.24346298,108480.0,108470.0,0.005]
[1751690015004,1.43892309,108480.0,108470.0,0.005]
[1751690015222,1.49366438,108480.0,108470.0,0.005]
[1751690016715,0.22640173,108470.0,108460.0,0.01914292]
[1751690017047,0.5270229,108470.0,108460.0,0.01914292]
[1751690017248,0.9335429,108470.0,108460.0,0.01914292]
[1751690017451,0.9612609,108470.0,108460.0,0.01914292]
[1751690017657,1.02873093,108470.0,108460.0,0.01914292]
[1751690018082,1.02873093,108470.0,108460.0,0.02614292]
[1751690018286,0.9612609,108470.0,108460.0,0.02614292]
[1751690020087,0.9612609,108470.0,108460.0,0.02714292]
[1751690026410,1.3012609,108470.0,108460.0,0.02714292]
[1751690033424,1.32891612,108470.0,108460.0,0.02714292]
[1751690033622,1.42035305,108470.0,108460.0,0.02714292]
[1751690037012,1.42035073,108470.0,108460.0,0.02714292]
[1751690040167,1.3125138,108470.0,108460.0,0.02714292]
[1751690040390,1.2961138,108470.0,108460.0,0.02714292]
[1751690043083,1.01760606,108470.0,108460.0,0.02714292]
[1751690043392,1.33269342,108470.0,108460.0,0.02714292]
[1751690055354,1.14617342,108470.0,108460.0,0.11857985]
[1751690055594,1.14617342,108470.0,108460.0,0.14997985]
[1751690056794,0.66478354,108470.0,108460.0,0.63132707]
[1751690056978,0.64664142,108470.0,108460.0,0.64054663]
[1751690057214,0.64664142,108470.0,108460.0,0.63132707]
[1751690057446,0.64664142,108470.0,108460.0,0.62210734]
[1751690057447,0.82180574,108470.0,108460.0,0.62210734]
[1751690059109,0.82180574,108470.0,108460.0,0.61288736]
[1751690059678,0.81258703,108470.0,108460.0,0.61288736]
[1751690059908,0.80336815,108470.0,108460.0,0.61288736]
[1751690064756,0.89480508,108470.0,108460.0,0.42848759]
[1751690064957,0.88558603,108470.0,108460.0,0.41278759]
[1751690065189,0.88558603,108470.0,108460.0,0.13427985]
[1751690066628,1.16409377,108470.0,108460.0,0.13427985]
[1751690067699,1.07265684,108470.0,108460.0,0.13427985]
[1751690068383,1.07265684,108470.0,108460.0,0.31867962]
[1751690068586,0.7941491,108470.0,108460.0,0.31867962]
[1751690069250,0.7941491,108470.0,108460.0,0.13427985]
[1751690070093,1.07265684,108470.0,108460.0,0.11857985]
[1751690070315,1.16409377,108470.0,108460.0,0.11857985]
[1751690071394,1.07265684,108470.0,108460.0,0.11857985]
[1751690071797,0.7941491,108470.0,108460.0,0.11857985]
[1751690072014,1.07265684,108470.0,108460.0,0.11857985]
[1751690072403,1.07265684,108470.0,108460.0,0.13417985]
[1751690072629,0.7941491,108470.0,108460.0,0.13417985]
[1751690073116,0.85512612,108470.0,108460.0,0.13417985]
[1751690073516,0.7941491,108470.0,108460.0,0.13417985]
[1751690075685,0.7941491,108470.0,108460.0,0.31857962]
[1751690076104,0.7941491,108470.0,108460.0,0.59708736]
[1751690077751,0.80336755,108470.0,108460.0,0.59708736]
[1751690078174,0.7941491,108470.0,108460.0,0.59708736]
[1751690078600,0.7941491,108470.0,108460.0,0.31857962]
[1751690078767,0.7941491,108470.0,108460.0,0.59708736]
[1751690081479,0.7941491,108470.0,108460.0,0.41268759]
[1751690081654,0.81422248,108470.0,108460.0,0.13417985]
[1751690081867,0.81422248,108470.0,108460.0,0.11857985]
[1751690082018,1.09273022,108470.0,108460.0,0.11857985]
[1751690083234,1.07265684,108470.0,108460.0,0.11857985]
[1751690083628,0.7941491,108470.0,108460.0,0.30297962]
[1751690083840,0.7941491,108470.0,108460.0,0.59778736]
[1751690084283,0.7941491,108470.0,108460.0,0.31927962]
[1751690084510,0.7941491,108470.0,108460.0,0.59778736]
[1751690086320,0.7941491,108470.0,108460.0,0.41338759]
[1751690087099,0.88558603,108470.0,108460.0,0.39708759]
[1751690087963,0.88558603,108470.0,108460.0,0.11857985]
[1751690088368,1.19599377,108470.0,108460.0,0.11857985]
[1751690088793,1.23257339,108470.0,108460.0,0.11857985]
[1751690089431,1.19599377,108470.0,108460.0,0.11857985]
[1751690090956,1.18039377,108470.0,108460.0,0.11857985]
[1751690091996,1.08895684,108470.0,108460.0,0.11857985]
[1751690105629,1.10465684,108470.0,108460.0,0.11857985]
[1751690110068,1.09721684,108470.0,108460.0,0.11857985]
[1751690110987,1.08151684,108470.0,108460.0,0.11857985]
[1751690117759,1.09691684,108470.0,108460.0,0.02714292]
[1751690118098,1.25265139,108470.0,108460.0,0.02714292]
[1751690122363,1.68987117,108470.0,108460.0,0.02714292]
[1751690122601,1.46610472,108470.0,108460.0,0.0357794]
[1751690123419,1.46610472,108470.0,108460.0,0.0287794]
[1751690124101,1.74561246,108470.0,108460.0,0.0287794]
[1751690124307,0.20285785,108450.0,108440.0,0.0324228]
[1751690124514,0.24471507,108450.0,108440.0,0.12398997]
[1751690124721,0.20285785,108450.0,108440.0,0.12398997]
[1751690124952,0.20285785,108450.0,108440.0,0.40249771]
[1751690125152,0.20285785,108450.0,108440.0,0.12398997]
[1751690125835,0.20285785,108450.0,108440.0,0.12898997]
[1751690126087,0.20285785,108450.0,108440.0,0.31342375]
[1751690126489,0.21196116,108450.0,108440.0,0.32902375]
[1751690126664,0.21196116,108450.0,108440.0,0.33002375]
[1751690127075,0.21196116,108450.0,108440.0,0.60853149]
[1751690127286,0.20274075,108450.0,108440.0,0.60853149]
[1751690127841,0.19363744,108450.0,108440.0,0.60853149]
[1751690129584,0.27017485,108450.0,108440.0,0.60853149]
[1751690133344,0.27017485,108450.0,108440.0,0.09756717]
[1751690133559,0.54868259,108450.0,108440.0,0.09756717]
[1751690133769,0.57080096,108450.0,108440.0,0.09756717]
[1751690134424,0.57080096,108450.0,108440.0,0.28200095]
[1751690134596,0.57080096,108450.0,108440.0,0.09756717]
[1751690136471,0.57080096,108450.0,108440.0,0.28200095]
[1751690138062,0.29229322,108450.0,108440.0,0.28200095]
[1751690138277,0.19363744,108450.0,108440.0,0.28200095]
[1751690142913,0.18441678,108450.0,108440.0,0.28200095]
[1751690144115,0.46292452,108450.0,108440.0,0.28200095]
[1751690144280,0.48504289,108450.0,108440.0,0.28200095]
[1751690145464,0.20653515,108450.0,108440.0,0.28200095]
[1751690145675,0.46292452,108450.0,108440.0,0.28200095]
[1751690145899,0.48504289,108450.0,108440.0,0.28200095]
[1751690147002,0.53757543,108450.0,108440.0,0.28200095]
[1751690149217,0.55387543,108450.0,108440.0,0.28200095]
[1751690150300,0.49426355,108450.0,108440.0,0.28200095]
[1751690150739,0.49426355,108450.0,108440.0,0.29122263]
[1751690151429,0.21575581,108450.0,108440.0,0.29122263]
[1751690152024,0.21575581,108450.0,108440.0,0.28200095]
[1751690155479,0.21575581,108450.0,108440.0,0.29122263]
[1751690155709,0.21575581,108450.0,108440.0,0.30044423]
[1751690156109,0.21575581,108450.0,108440.0,0.56973037]
[1751690156312,0.21575581,108450.0,108440.0,0.57895197]
[1751690156510,0.21575581,108450.0,108440.0,0.56973037]
[1751690156745,0.29105163,108450.0,108440.0,0.56973037]
[1751690156961,0.02211837,108450.0,108440.0,0.5973944]
[1751690157133,0.05900017,108450.0,108440.0,0.60377331]
[1751690157341,0.05900017,108450.0,108440.0,0.61937331]
[1751690157629,0.04977942,108450.0,108440.0,0.62859457]
[1751690157887,0.05900008,108450.0,108440.0,0.62859457]
[1751690158075,0.05900008,108450.0,108440.0,0.61937331]
[1751690158221,0.05900008,108450.0,108440.0,0.62859457]
[1751690158681,0.05900008,108450.0,108440.0,0.61937331]
[1751690159176,0.04977942,108450.0,108440.0,0.62859448]
[1751690159368,0.04977933,108450.0,108440.0,0.62859448]
[1751690159564,0.03133852,108450.0,108440.0,0.63781557]
[1751690159803,0.04977942,108450.0,108440.0,0.62859448]
[1751690161709,0.02211837,108450.0,108440.0,0.91632331]
[1751690161930,0.41745348,108460.0,108450.0,0.20933744]
[1751690162142,0.41745348,108460.0,108450.0,0.57928211]
[1751690162360,0.41745348,108460.0,108450.0,0.58850269]
[1751690162584,0.41745348,108460.0,108450.0,0.76560211]
[1751690163610,0.41745348,108460.0,108450.0,0.76760211]
[1751690163813,0.41745348,108460.0,108450.0,0.7676022]
[1751690164046,0.60185325,108460.0,108450.0,0.76760228]
[1751690164465,0.60185325,108460.0,108450.0,0.77682294]
[1751690164667,0.61107323,108460.0,108450.0,0.78604352]
[1751690164879,0.61107323,108460.0,108450.0,0.76760228]
[1751690166153,0.60185384,108460.0,108450.0,0.76760228]
[1751690168442,0.60185384,108460.0,108450.0,0.75838145]
[1751690169557,0.41745407,108460.0,108450.0,0.77682286]
[1751690169820,0.41745407,108460.0,108450.0,0.76760228]
[1751690170043,0.60185384,108460.0,108450.0,0.76760228]
[1751690170460,0.60185384,108460.0,108450.0,0.75838145]
[1751690170671,0.60185384,108460.0,108450.0,0.76760228]
[1751690170888,0.60185384,108460.0,108450.0,0.47987371]
[1751690171507,0.5926342,108460.0,108450.0,0.47987371]
[1751690171712,0.5926342,108460.0,108450.0,0.46417371]
[1751690177180,0.5834143,108460.0,108450.0,0.46417371]
[1751690177593,0.86192204,108460.0,108450.0,0.27975693]
[1751690177794,0.98605897,108460.0,108450.0,0.27975693]
[1751690179052,0.98605897,108460.0,108450.0,0.09343693]
[1751690180138,0.70755123,108460.0,108450.0,0.09343693]
[1751690180344,0.98605897,108460.0,108450.0,0.09343693]
[1751690181395,0.96975897,108460.0,108450.0,0.09343693]
[1751690181828,0.69125123,108460.0,108450.0,0.09343693]
[1751690182045,0.86192204,108460.0,108450.0,0.09343693]
[1751690208303,0.87732204,108460.0,108450.0,0.09343693]
[1751690211913,0.86192204,108460.0,108450.0,0.09343693]
[1751690222078,0.5834143,108460.0,108450.0,0.09343693]
[1751690222226,0.86192204,108460.0,108450.0,0.09343693]
[1751690222433,0.86192204,108460.0,108450.0,0.27785371]
[1751690222660,0.86192204,108460.0,108450.0,0.09343693]
[1751690225899,0.97192204,108460.0,108450.0,0.09343693]
[1751690226674,1.06335897,108460.0,108450.0,0.09343693]
[1751690227002,0.97192204,108460.0,108450.0,0.09343693]
[1751690229092,0.50901377,108460.0,108450.0,0.58198211]
[1751690229293,0.38977679,108460.0,108450.0,0.61602292]
[1751690229475,0.39899669,108460.0,108450.0,0.6068026]
[1751690230940,0.39899669,108460.0,108450.0,0.5975822]
[1751690231456,0.39899669,108460.0,108450.0,0.60680286]
[1751690233266,0.39899669,108460.0,108450.0,0.61602344]
[1751690234171,0.39899669,108460.0,108450.0,0.60680286]
[1751690235049,0.39899669,108460.0,108450.0,0.5975822]
[1751690235251,0.39899669,108460.0,108450.0,0.60680286]
[1751690235705,0.39899669,108460.0,108450.0,0.5975822]
[1751690235906,0.56495777,108460.0,108450.0,0.57276145]
[1751690236051,0.57213804,108460.0,108450.0,0.09343693]
[1751690236256,0.95828271,108460.0,108450.0,0.09343693]
[1751690236458,0.98595889,108460.0,108450.0,0.27955693]
[1751690236947,0.98599053,108460.0,108450.0,0.27955693]
[1751690237359,1.26449827,108460.0,108450.0,0.002]
[1751690238434,1.30107789,108460.0,108450.0,0.002]
[1751690238638,0.74406241,108460.0,108450.0,0.002]
[1751690238846,1.30107789,108460.0,108450.0,0.002]
[1751690239046,1.27339667,108460.0,108450.0,0.002]
[1751690239858,1.32813796,108460.0,108450.0,0.002]
[1751690241036,1.41586096,108460.0,108450.0,0.002]
[1751690241470,1.41506096,108460.0,108450.0,0.002]
[1751690242060,1.60118096,108460.0,108450.0,0.002]
[1751690243942,1.50974403,108460.0,108450.0,0.002]
[1751690246328,1.45500274,108460.0,108450.0,0.002]
[1751690247142,0.89798726,108460.0,108450.0,0.002]
[1751690247345,1.45500274,108460.0,108450.0,0.002]
[1751690254450,1.48302507,108460.0,108450.0,0.002]
[1751690254851,1.574462,108460.0,108450.0,0.002]
[1751690256602,1.60209025,108460.0,108450.0,0.002]
[1751690258286,1.60204834,108460.0,108450.0,0.002]
[1751690259420,1.57441983,108460.0,108450.0,0.002]
[1751690263402,1.62916112,108460.0,108450.0,0.002]
[1751690267348,1.5925815,108460.0,108450.0,0.002]
[1751690269995,1.50114457,108460.0,108450.0,0.002]
[1751690271873,1.46854457,108460.0,108450.0,0.002]
[1751690275739,1.19890114,108460.0,108450.0,0.0183]
[1751690275939,1.1619745,108460.0,108450.0,0.0183]
[1751690277683,0.9758945,108460.0,108450.0,0.0183]
[1751690278295,1.25440224,108460.0,108450.0,0.0183]
[1751690279190,0.9758945,108460.0,108450.0,0.0183]
[1751690281480,1.25440224,108460.0,108450.0,0.0183]
[1751690282883,0.9758945,108460.0,108450.0,0.0183]
[1751690283303,1.01281607,108460.0,108450.0,0.0183]
[1751690283505,1.29132381,108460.0,108450.0,0.0183]
[1751690284156,1.25440224,108460.0,108450.0,0.0183]
[1751690284886,0.9758945,108460.0,108450.0,0.0183]
[1751690285313,1.01281534,108460.0,108450.0,0.0183]
[1751690286486,0.9758945,108460.0,108450.0,0.0183]
[1751690288376,1.01281453,108460.0,108450.0,0.0183]
[1751690289313,1.01281453,108460.0,108450.0,0.002]
[1751690290462,1.30782227,108460.0,108450.0,0.002]
[1751690291165,1.29132227,108460.0,108450.0,0.002]
[1751690292657,1.47736227,108460.0,108450.0,0.002]
[1751690293983,1.47741108,108460.0,108450.0,0.002]
[1751690295638,0.9203956,108460.0,108450.0,0.002]
[1751690295874,1.47741108,108460.0,108450.0,0.002]
[1751690296044,1.53860643,108460.0,108450.0,0.002]
[1751690296257,1.55400643,108460.0,108450.0,0.002]
[1751690296487,1.5170864,108460.0,108450.0,0.002]
[1751690297573,1.55400604,108460.0,108450.0,0.002]
[1751690298196,1.5170864,108460.0,108450.0,0.002]
[1751690306326,1.54454222,108460.0,108450.0,0.002]
[1751690306873,0.53365529,108440.0,108430.0,0.35388587]
[1751690307014,0.5558069,108440.0,108430.0,0.4453228]
[1751690308058,0.5558069,108440.0,108430.0,0.4473228]
[1751690309450,0.5558069,108440.0,108430.0,0.17381506]
[1751690309652,0.5558069,108440.0,108430.0,0.4523228]
[1751690309854,0.59730993,108440.0,108430.0,0.4523228]
[1751690311456,0.59730993,108440.0,108430.0,0.17381506]
[1751690311664,0.59730993,108440.0,108430.0,0.4523228]
[1751690312846,0.5558069,108440.0,108430.0,0.4523228]
[1751690319729,0.5558069,108440.0,108430.0,0.4071228]
[1751690319936,0.5558069,108440.0,108430.0,0.5931228]
[1751690325845,0.5558069,108440.0,108430.0,0.57854467]
[1751690327319,0.5558069,108440.0,108430.0,0.59701467]
[1751690327521,0.5558069,108440.0,108430.0,0.57854467]
[1751690327719,0.59142898,108440.0,108430.0,0.30003693]
[1751690327989,0.59142898,108440.0,108430.0,0.57854467]
[1751690329943,0.5558069,108440.0,108430.0,0.57854467]
[1751690332762,0.56502833,108440.0,108430.0,0.76299546]
[1751690335342,0.56502833,108440.0,108430.0,0.76295546]
[1751690344995,0.56502833,108440.0,108430.0,0.48444772]
[1751690345197,0.56502833,108440.0,108430.0,0.76295546]
[1751690345401,0.65646526,108440.0,108430.0,0.76295546]
[1751690348574,0.65646526,108440.0,108430.0,0.77217799]
[1751690348773,0.65646526,108440.0,108430.0,0.76295546]
[1751690351666,0.65646526,108440.0,108430.0,0.74735546]
[1751690352066,0.65646526,108440.0,108430.0,0.28439693]
[1751690352268,0.934973,108440.0,108430.0,0.28439693]
[1751690352472,0.65646526,108440.0,108430.0,0.56290467]
[1751690352694,0.65646526,108440.0,108430.0,0.46884772]
[1751690353262,0.64724383,108440.0,108430.0,0.46884772]
[1751690353534,0.92575157,108440.0,108430.0,0.46884772]
[1751690355144,0.83431464,108440.0,108430.0,0.46884772]
[1751690355873,0.5558069,108440.0,108430.0,0.46884772]
[1751690360371,0.5558069,108440.0,108430.0,0.09843693]
[1751690360690,0.5558069,108440.0,108430.0,0.28435693]
[1751690361556,0.5558069,108440.0,108430.0,0.46880772]
[1751690365142,0.5558069,108440.0,108430.0,0.74731546]
[1751690366858,0.6225681,108440.0,108430.0,0.74731546]
[1751690367922,0.6225681,108440.0,108430.0,0.46880772]
[1751690381765,0.5558069,108440.0,108430.0,0.46880772]
[1751690383959,0.5710069,108440.0,108430.0,0.46880772]
[1751690386439,0.59870726,108440.0,108430.0,0.46880772]
[1751690386629,0.58350726,108440.0,108430.0,0.46880772]
[1751690388027,0.58350726,108440.0,108430.0,0.28288772]
[1751690388232,0.67494419,108440.0,108430.0,0.46876772]
[1751690389598,0.67494419,108440.0,108430.0,0.28431693]
[1751690389855,0.69114419,108440.0,108430.0,0.28431693]
[1751690392805,0.59970726,108440.0,108430.0,0.28431693]
[1751690399398,0.894115,108440.0,108430.0,0.09843693]
[1751690399598,0.894115,108440.0,108430.0,0.28431693]
[1751690399914,0.61560726,108440.0,108430.0,0.28431693]
[1751690401199,0.61560726,108440.0,108430.0,0.46876772]
[1751690401437,0.38985197,108440.0,108430.0,0.75649791]
[1751690401647,0.36215161,108440.0,108430.0,0.80654204]
[1751690401853,0.37137253,108440.0,108430.0,0.80654204]
[1751690402057,0.36215161,108440.0,108430.0,0.80654204]
[1751690402750,0.34,108440.0,108430.0,0.80654204]
[1751690403499,0.34,108440.0,108430.0,0.5280343]
[1751690403671,0.34,108440.0,108430.0,0.80654204]
[1751690405790,0.349221,108440.0,108430.0,0.80654204]
[1751690406178,0.35844217,108440.0,108430.0,0.80654204]
[1751690406408,0.349221,108440.0,108430.0,0.80654204]
[1751690406955,0.35844217,108440.0,108430.0,0.80654204]
[1751690407115,0.349221,108440.0,108430.0,0.80654204]
[1751690408722,0.35844209,108440.0,108430.0,0.80654204]
[1751690410093,0.36766326,108440.0,108430.0,0.80654204]
[1751690410888,0.3768846,108440.0,108430.0,0.80654204]
[1751690411098,0.36766326,108440.0,108430.0,0.80654204]
[1751690411957,0.3768846,108440.0,108430.0,0.80654204]
[1751690412118,0.36766326,108440.0,108430.0,0.80654204]
[1751690412326,0.37688452,108440.0,108430.0,0.80654204]
[1751690413690,0.37688452,108440.0,108430.0,0.5280343]
[1751690413894,0.37688452,108440.0,108430.0,0.80654204]
[1751690414556,0.36766326,108440.0,108430.0,0.80654204]
[1751690415995,0.3768846,108440.0,108430.0,0.80654204]
[1751690416218,0.36766326,108440.0,108430.0,0.80654204]
[1751690417814,0.3768846,108440.0,108430.0,0.80654204]
[1751690418865,0.36766326,108440.0,108430.0,0.80654204]
[1751690419676,0.3768846,108440.0,108430.0,0.80654204]
[1751690420718,0.38610611,108440.0,108430.0,0.80654212]
[1751690420921,0.38610611,108440.0,108430.0,0.7973201]
[1751690421127,0.38610611,108440.0,108430.0,0.80654221]
[1751690421260,0.38610611,108440.0,108430.0,0.81576423]
[1751690421463,0.57053989,108440.0,108430.0,0.77887546]
[1751690421656,0.6298074,108440.0,108430.0,0.74723546]
[1751690421869,0.651945,108440.0,108430.0,0.74723546]
[1751690422652,0.651945,108440.0,108430.0,0.09843693]